{"text_format":"3","workbook":"xlsx","n_sheets":1,"sheets":["Расходы На Запуск Бизнеса"],"not_rendered":{"defined_names":1},"read":"whole","date_system":"1900"}

{"sheet":"Расходы На Запуск Бизнеса","index":0,"n_rows":120,"n_cols":4,"rows_kept":120,"merged":[[1,1,1,3],[60,1,60,3],[82,1,82,3]]}
["РАСХОДЫ НА ЗАПУСК БИЗНЕСА",null,null,"НАЗВАНИЕ КОМПАНИИ, ЗАО"]
[null,"ПРОЧТИТЕ ПЕРЕД НАЧАЛОМ РАБОТЫ С ЭТИМ ШАБЛОНОМ\nПочти каждый, кто запускает бизнес, недооценивает расходы, а потом сталкивается с недостатком средств. Главный способ избежать этой трудности — провести доскональное исследование и тщательно спланировать бюджет. Этот шаблон расходов на запуск бизнеса поможет в этом.\n\nНАЧНИТЕ С ОЦЕНКИ РАСХОДОВ\nВо сколько вам обойдется подготовка и запуск бизнеса?  В этом вопросе самое главное — внимание к мелочам. Для каждой категории расходов составьте список всего, что вам необходимо приобрести. Сюда включите как капитальные активы (например, оборудование и инвентарь), так и услуги (например, ремонт и страховка). Затем определитесь, где вы будете покупать эти товары и услуги. Найдите несколько поставщиков и сравните их. Не смотрите только на цену — не менее важны условия оплаты, доставки и обслуживания, а также надежность поставщика. "]
[]
[null,"РАСХОДЫ НА ЗАПУСК БИЗНЕСА"]
[null,"СТРОЕНИЕ/НЕДВИЖИМОСТЬ"," ","СУММА"]
[null,"Цена",null,{"v":0,"d":"0.00 ₽"}]
[null,"Строительство",null,{"v":0,"d":"0.00 ₽"}]
[null,"Ремонт",null,{"v":0,"d":"0.00 ₽"}]
[null,"Другое",null,{"v":0,"d":"0.00 ₽"}]
[null,"Итог",null,{"$f":"SUBTOTAL(109,Недвижимость[СУММА])","v":{"v":0,"d":"0.00 ₽"}}]
[]
[null,"УЛУЧШЕНИЕ АРЕДНОВАННОЙ СОБСТВЕННОСТИ"," ","СУММА"]
[null,"Пункт 1",null,{"v":0,"d":"0.00 ₽"}]
[null,"Пункт 2",null,{"v":0,"d":"0.00 ₽"}]
[null,"Пункт 3",null,{"v":0,"d":"0.00 ₽"}]
[null,"Пункт 4",null,{"v":0,"d":"0.00 ₽"}]
[null,"Итог",null,{"$f":"SUBTOTAL(109,Улучшения[СУММА])","v":{"v":0,"d":"0.00 ₽"}}]
[]
[null,"СПИСОК КАПИТАЛЬНОГО ОБОРУДОВАНИЯ"," ","СУММА"]
[null,"Мебель",null,{"v":0,"d":"0.00 ₽"}]
[null,"Оборудование",null,{"v":0,"d":"0.00 ₽"}]
[null,"Недвижимый инвентарь",null,{"v":0,"d":"0.00 ₽"}]
[null,"Станочное оборудование",null,{"v":0,"d":"0.00 ₽"}]
[null,"Другое",null,{"v":0,"d":"0.00 ₽"}]
[null,"Итог",null,{"$f":"SUBTOTAL(109,Капитал[СУММА])","v":{"v":0,"d":"0.00 ₽"}}]
[]
[null,"ПОМЕЩЕНИЕ И АДМИНИСТРАТИВНЫЕ РАСХОДЫ"," ","СУММА"]
[null,"Аренда",null,{"v":0,"d":"0.00 ₽"}]
[null,"Оплата коммунальных услуг",null,{"v":0,"d":"0.00 ₽"}]
[null,"Оплата юридических и бухгалтерских услуг",null,{"v":0,"d":"0.00 ₽"}]
[null,"Предварительно оплаченная страховка",null,{"v":0,"d":"0.00 ₽"}]
[null,"Предварительная оплата труда ",null,{"v":0,"d":"0.00 ₽"}]
[null,"Другое",null,{"v":0,"d":"0.00 ₽"}]
[null,"Итог",null,{"$f":"SUBTOTAL(109,РасходыНаУправление[СУММА])","v":{"v":0,"d":"0.00 ₽"}}]
[]
[null,"НАЧАЛЬНАЯ ИНВЕНТАРИЗАЦИЯ"," ","СУММА"]
[null,"Категория 1",null,{"v":0,"d":"0.00 ₽"}]
[null,"Категория 2",null,{"v":0,"d":"0.00 ₽"}]
[null,"Категория 3",null,{"v":0,"d":"0.00 ₽"}]
[null,"Категория 4",null,{"v":0,"d":"0.00 ₽"}]
[null,"Категория 5",null,{"v":0,"d":"0.00 ₽"}]
[null,"Итог",null,{"$f":"SUBTOTAL(109,НачальныйИнвентарь[СУММА])","v":{"v":0,"d":"0.00 ₽"}}]
[]
[null,"РАСХОДЫ НА РЕКЛАМУ И ПРОДВИЖЕНИЕ"," ","СУММА"]
[null,"Реклама",null,{"v":0,"d":"0.00 ₽"}]
[null,"Фирменный стиль",null,{"v":0,"d":"0.00 ₽"}]
[null,"Печать",null,{"v":0,"d":"0.00 ₽"}]
[null,"Командировки и корпоративные мероприятия",null,{"v":0,"d":"0.00 ₽"}]
[null,"Другие или дополнительные категории",null,{"v":0,"d":"0.00 ₽"}]
[null,"Итог",null,{"$f":"SUBTOTAL(109,РасходыНаПродвижение[СУММА])","v":{"v":0,"d":"0.00 ₽"}}]
[]
[null,"ПРОЧИЕ РАСХОДЫ"," ","СУММА"]
[null,"Прочие расходы 1",null,{"v":0,"d":"0.00 ₽"}]
[null,"Прочие расходы 2",null,{"v":0,"d":"0.00 ₽"}]
[null,"Итог",null,{"$f":"SUBTOTAL(109,ПрочиеРасходы[СУММА])","v":{"v":0,"d":"0.00 ₽"}}]
[]
[null,"Резерв на непредвиденные расходы",null,{"v":0,"d":"0.00 ₽"}]
[]
[null,"Оборотный капитал ",null,{"v":0,"d":"0.00 ₽"}]
[]
[null,"ДОБАВЬТЕ РЕЗЕРВ НА НЕПРЕДВИДЕННЫЕ РАСХОДЫ\nОпишите подробно, какие средства вы направите в этот резерв. \n\nОПРЕДЕЛИТЕ ФИНАНСОВЫЙ ПОТОК\nНельзя запускать бизнес с пустым банковским счетом. Необходимо иметь финансовую подушку, которая поможет оплачивать расходы по ходу деятельности. В итоге вам нужно иметь представление о доходе на следующие двенадцать месяцев. Именно так вы сможете произвести оценку оборотного капитала. Пока вы можете либо оставить эту строку пустой, либо ввести приблизительное значение. После того, как вы заполните сведения о финансовом потоке, вы можете вернуться и ввести более точные значения.\n\nВВЕДИТЕ ИСТОЧНИКИ ДОХОДА\nПосле того, как вы оценили количество требуемых для запуска средств, необходимо перейти к самой важной части этого шаблона. Введите сумму, которую вы вложите сами, сколько будет внесено соучредителями или инвесторами, а также сколько дохода будет приносить бизнес."]
[]
[null,"ИСТОЧНИКИ ДОХОДА"]
[null,"ВЗНОСЫ СОУЧРЕДИТЕЛЕЙ  (ИМЯ И % ВЗНОСА)"," ","СУММА"]
[null,"Ваше имя и процент взноса",null,{"v":0,"d":"0.00 ₽"}]
[null,"Другой инвестор",null,{"v":0,"d":"0.00 ₽"}]
[null,"Другой инвестор",null,{"v":0,"d":"0.00 ₽"}]
[null,"Другой инвестор",null,{"v":0,"d":"0.00 ₽"}]
[null,"Итог",null,{"$f":"SUBTOTAL(109,ВзносыСоучредителей[СУММА])","v":{"v":0,"d":"0.00 ₽"}}]
[]
[null,"КРЕДИТЫ БАНКОВ"," ","СУММА"]
[null,"Банк 1",null,{"v":0,"d":"0.00 ₽"}]
[null,"Банк 2",null,{"v":0,"d":"0.00 ₽"}]
[null,"Банк 3",null,{"v":0,"d":"0.00 ₽"}]
[null,"Банк 4",null,{"v":0,"d":"0.00 ₽"}]
[null,"Итог",null,{"$f":"SUBTOTAL(109,КредитыБанков[СУММА])","v":{"v":0,"d":"0.00 ₽"}}]
[]
[null,"ПРОЧИЕ КРЕДИТЫ"," ","СУММА"]
[null,"Источник 1",null,{"v":0,"d":"0.00 ₽"}]
[null,"Источник 2",null,{"v":0,"d":"0.00 ₽"}]
[null,"Итог",null,{"$f":"SUBTOTAL(109,ПрочиеКредиты[СУММА])","v":{"v":0,"d":"0.00 ₽"}}]
[]
[null,"ПРЕДОСТАВЬТЕ ГАРАНТИИ КРЕДИТОСПОСОБНОСТИ\nЕсли вы воспользуетесь этим планом, чтобы подать заявку на получение кредита в банке, воспользуйтесь разделом внизу, чтобы показать, какие активы предложены в качестве гарантии кредитоспособности для обеспечения кредита и расчета ценности этих предметов. Подготовьте доказательства своей оценки."]
[]
[null,"КРАТКОЕ ОПИСАНИЕ"]
[null,"ИСТОЧНИКИ ДОХОДА"," ","ИТОГИ"]
[null,"Взносы соучредителей и другие инвестиции",null,{"$f":"ВзносыСоучредителей[[#Totals],[СУММА]]","v":{"v":0,"d":"0.00 ₽"}}]
[null,"Кредиты банков",null,{"$f":"КредитыБанков[[#Totals],[СУММА]]","v":{"v":0,"d":"0.00 ₽"}}]
[null,"Прочие кредиты",null,{"$f":"ПрочиеКредиты[[#Totals],[СУММА]]","v":{"v":0,"d":"0.00 ₽"}}]
[null,"Итог",null,{"$f":"SUBTOTAL(109,ИсточникиДохода[ИТОГИ])","v":{"v":0,"d":"0.00 ₽"}}]
[]
[null,"РАСХОДЫ НА ЗАПУСК БИЗНЕСА"," ","ИТОГИ"]
[null,"Строение и недвижимость",null,{"$f":"Недвижимость[[#Totals],[СУММА]]","v":{"v":0,"d":"0.00 ₽"}}]
[null,"Улучшение арендованной собственности",null,{"$f":"Улучшения[[#Totals],[СУММА]]","v":{"v":0,"d":"0.00 ₽"}}]
[null,"Капитальное оборудование",null,{"$f":"Капитал[[#Totals],[СУММА]]","v":{"v":0,"d":"0.00 ₽"}}]
[null,"Помещение и административные расходы",null,{"$f":"РасходыНаУправление[[#Totals],[СУММА]]","v":{"v":0,"d":"0.00 ₽"}}]
[null,"Начальная инвентаризация",null,{"$f":"НачальныйИнвентарь[[#Totals],[СУММА]]","v":{"v":0,"d":"0.00 ₽"}}]
[null,"Расходы на рекламу и продвижение",null,{"$f":"РасходыНаПродвижение[[#Totals],[СУММА]]","v":{"v":0,"d":"0.00 ₽"}}]
[null,"Прочие расходы",null,{"$f":"ПрочиеРасходы[[#Totals],[СУММА]]","v":{"v":0,"d":"0.00 ₽"}}]
[null,"Резерв на непредвиденные расходы",null,{"$f":"SUM('Расходы На Запуск Бизнеса'!$C$57)","v":{"v":0,"d":"0.00 ₽"}}]
[null,"Оборотный капитал",null,{"$f":"SUM('Расходы На Запуск Бизнеса'!$C$59)","v":{"v":0,"d":"0.00 ₽"}}]
[null,"Итог",null,{"$f":"SUBTOTAL(109,РасходыНаСтартап[ИТОГИ])","v":{"v":0,"d":"0.00 ₽"}}]
[]
[null,"ОХРАНА И ГАРАНТИЯ КРЕДИТОСПОСОБНОСТИ"]
[null,"АКТИВЫ ДЛЯ ОБЕСПЕЧЕНИЯ КРЕДИТА","ОПИСАНИЕ","ЗНАЧЕНИЕ"]
[null,"Недвижимость",null,{"v":0,"d":"0.00 ₽"}]
[null,"Другие активы",null,{"v":0,"d":"0.00 ₽"}]
[null,"Другие активы",null,{"v":0,"d":"0.00 ₽"}]
[null,"Другие активы",null,{"v":0,"d":"0.00 ₽"}]
[null,"Итог",null,{"$f":"SUBTOTAL(109,Гарантии[ЗНАЧЕНИЕ])","v":{"v":0,"d":"0.00 ₽"}}]
[]
[null,"СОУЧРЕДИТЕЛИ"," ","  "]
[null,"Введите свое имя"]
[null,"Другой соучредитель"]
[null,"Другой соучредитель"]
[]
[null,"ПОРУЧИТЕЛИ (КРОМЕ СОУЧРЕДИТЕЛЕЙ)"," ","  "]
[null,"Поручитель 1"]
[null,"Поручитель 2"]
[null,"Поручитель 3"]